fUST/lending_fUST_20250616
["ID","MTS","AMOUNT","RATE_DAILY","PERIOD"]
[366095023,1750060236101,-460.0,0.00021917,4]
[366095024,1750060236112,-460.0,0.00021917,4]
[366095025,1750060236123,-460.0,0.00021917,4]
[366095026,1750060236133,-460.0,0.00021917,4]
[366095027,1750060236143,-460.0,0.00021917,4]
[366095028,1750060236153,-460.0,0.00021917,4]
[366095029,1750060236164,-460.0,0.00021917,4]
[366095030,1750060236174,-460.0,0.00021917,4]
[366095031,1750060236184,-448.0538699,0.00021917,4]
[366095032,1750060236193,-460.0,0.00021917,4]
[366095033,1750060236203,-460.0,0.00021917,4]
[366095034,1750060236214,-460.0,0.00021917,4]
[366095035,1750060236223,-434.89637637,0.00021917,4]
[366095036,1750060236233,-320.73066256,0.00021917,4]
[366095037,1750060236243,-460.0,0.00021917,4]
[366095038,1750060236252,-460.0,0.00021917,4]
[366095039,1750060236263,-460.0,0.00021917,4]
[366095040,1750060236272,-96.93767079,0.00021917,4]
[366095041,1750060236289,-363.06232921,0.00021917,4]
[366095042,1750060236299,-356.35667011,0.00021917,4]
[366095043,1750060236315,-460.0,0.00021917,4]
[366095044,1750060236326,-460.0,0.00021917,4]
[366095045,1750060236335,-460.0,0.00021917,4]
[366095046,1750060236344,-460.0,0.00021917,4]
[366095047,1750060236354,-460.0,0.00021917,4]
[366095048,1750060236363,-460.0,0.00021917,4]
[366095049,1750060236373,-460.0,0.00021917,4]
[366095050,1750060236384,-460.0,0.00021917,4]
[366095051,1750060236394,-460.0,0.00021917,4]
[366095052,1750060236404,-460.0,0.00021917,4]
[366095053,1750060236417,-460.0,0.00021917,4]
[366095054,1750060236427,-460.0,0.00021917,4]
[366095055,1750060236436,-460.0,0.00021917,4]
[366095056,1750060236447,-586.10282841,0.00021917,4]
[366095057,1750060236457,-460.0,0.00021917,4]
[366095058,1750060236467,-460.0,0.00021917,4]
[366095059,1750060236476,-460.0,0.00021917,4]
[366095060,1750060236487,-445.36447847,0.00021917,4]
[366095061,1750060236499,-373.01304425,0.00021917,4]
[366095062,1750060236508,-460.0,0.00021917,4]
[366095063,1750060236518,-460.0,0.00021917,4]
[366095064,1750060236527,-460.0,0.00021917,4]
[366095065,1750060236537,-460.0,0.00021917,4]
[366095066,1750060236546,-469.05928685,0.00021917,4]
[366095067,1750060236558,-460.0,0.00021917,4]
[366095068,1750060236568,-460.0,0.00021917,4]
[366095069,1750060236578,-460.0,0.00021917,4]
[366095070,1750060236589,-460.0,0.00021917,4]
[366095071,1750060236600,-460.0,0.00021917,4]
[366095072,1750060236610,-547.71,0.00021917,4]
[366095073,1750060236620,-460.0,0.00021917,4]
[366095074,1750060236631,-419.42835806,0.00021917,4]
[366095075,1750060236641,-460.0,0.00021917,4]
[366095076,1750060236652,-460.0,0.00021917,4]
[366095077,1750060236662,-460.0,0.00021917,4]
[366095078,1750060236671,-460.0,0.00021917,4]
[366095079,1750060236681,-462.39959529,0.00021917,4]
[366095080,1750060236690,-460.0,0.00021917,4]
[366095081,1750060236699,-460.0,0.00021917,4]
[366095082,1750060236709,-460.0,0.00021917,4]
[366095083,1750060236720,-460.0,0.00021917,4]
[366095084,1750060236732,-460.0,0.00021917,4]
[366095085,1750060236742,-460.0,0.00021917,4]
[366095086,1750060236752,-460.0,0.00021917,4]
[366095087,1750060236761,-420.36975692,0.00021917,4]
[366095088,1750060236771,-460.0,0.00021917,4]
[366095089,1750060236780,-397.19648087,0.00021917,4]
[366095090,1750060236791,-462.90829541,0.00021917,4]
[366095091,1750060236800,-407.27914956,0.00021917,4]
[366095092,1750060236810,-460.0,0.00021917,4]
[366095093,1750060236819,-460.0,0.00021917,4]
[366095094,1750060236829,-460.0,0.00021917,4]
[366095095,1750060236838,-188.55706566,0.00021917,4]
[366095096,1750060236847,-460.0,0.00021917,4]
[366095097,1750060236857,-460.0,0.00021917,4]
[366095098,1750060236867,-460.0,0.00021917,4]
[366095099,1750060236877,-431.79576432,0.00021917,4]
[366095100,1750060236886,-516.69014068,0.00021917,4]
[366095101,1750060236896,-460.55619614,0.00021917,2]
[366095102,1750060236906,-460.0,0.00021917,4]
[366095103,1750060236915,-460.0,0.00021917,4]
[366095104,1750060236925,-439.16775286,0.00021917,4]
[366095105,1750060236935,-386.31819474,0.00021917,4]
[366095106,1750060236946,-460.0,0.00021917,4]
[366095107,1750060236955,-401.69035742,0.00021917,4]
[366095108,1750060236966,-460.0,0.00021917,4]
[366095109,1750060236975,-445.2115944,0.00021917,4]
[366095110,1750060236984,-316.5706112,0.00021917,4]
[366095111,1750060236994,-460.0,0.00021917,4]
[366095112,1750060237004,-460.0,0.00021917,4]
[366095113,1750060237013,-460.0,0.00021917,4]
[366095114,1750060237023,-460.0,0.00021917,4]
[366095115,1750060237032,-500.0,0.00021918,2]
[366095116,1750060237043,-500.0,0.00021918,2]
[366095117,1750060237053,-600.11768417,0.00021918,2]
[366095118,1750060237063,-5000.0,0.00021941,2]
[366095119,1750060237073,-258.79652619,0.00021943,2]
[366095120,1750060237083,-502.21511315,0.00021943,2]
[366095121,1750060237092,-500.0,0.00021943,2]
[366095122,1750060237102,-500.0,0.00021943,2]
[366095123,1750060237112,-502.21576639,0.00021943,2]
[366095124,1750060237121,-153.164602,0.00021952,7]
[366095125,1750060237131,-152.913812,0.00021952,7]
[366095126,1750060237141,-500.0,0.00021961,2]
[366095127,1750060237151,-500.0,0.00021961,2]
[366095128,1750060237161,-502.04338152,0.00021961,2]
[366095129,1750060237171,-500.85143589,0.00021973,2]
[366095130,1750060237181,-472.21724547,0.00021973,2]
[366095131,1750060237191,-500.0,0.00021973,2]
[366095132,1750060237201,-500.0,0.00021973,2]
[366095133,1750060237211,-600.0,0.00021973,2]
[366095134,1750060237221,-540.61537429,0.00021973,2]
[366095135,1750060237231,-60174.5667472,0.00022,7]
[366095136,1750060237244,-12275.61395038,0.00022,7]
[366095157,1750060238122,-273.22,0.00021917,4]
[366095163,1750060238179,-142.21996808,0.00021917,4]
[366095165,1750060238189,-460.0,0.00021917,4]
[366095167,1750060238199,-460.0,0.00021917,2]
[366095169,1750060238208,-30762.67930242,0.00022,7]
[366095171,1750060238219,-151.0,0.00022,7]
[366095173,1750060238229,-154.140055,0.00022,7]
[366095175,1750060238238,-847.13,0.00022,7]
[366095176,1750060238248,-152.650688,0.00022,7]
[366095179,1750060238259,-151.0,0.00022,7]
[366095180,1750060238269,-164.130632,0.00022,7]
[366095183,1750060238279,-151.0,0.00022,7]
[366095184,1750060238288,-151.0,0.00022,7]
[366095186,1750060238298,-151.0,0.00022,7]
[366095188,1750060238307,-151.0,0.00022,7]
[366095190,1750060238316,-154.786526,0.00022,7]
[366095192,1750060238326,-151.0,0.00022,7]
[366095194,1750060238336,-151.0,0.00022,7]
[366095196,1750060238347,-151.0,0.00022,7]
[366095198,1750060238356,-3267.81,0.00022,7]
[366095200,1750060238366,-151.0,0.00022,7]
[366095202,1750060238375,-240.803127,0.00022,7]
[366095204,1750060238385,-151.0,0.00022,7]
[366095206,1750060238395,-189.374086,0.00022,7]
[366095208,1750060238406,-189.374086,0.00022,7]
[366095210,1750060238419,-151.0,0.00022,7]
[366095212,1750060238429,-151.0,0.00022,7]
[366095214,1750060238439,-151.0,0.00022,7]
[366095216,1750060238450,-151.0,0.00022,7]
[366095218,1750060238460,-300.548,0.00022,7]
[366095220,1750060238470,-332.016889,0.00022,7]
[366095222,1750060238479,-332.016889,0.00022,7]
[366095224,1750060238490,-151.0,0.00022,7]
[366095226,1750060238501,-166.0,0.00022,2]
[366095228,1750060238510,-151.0,0.00022,7]
[366095230,1750060238520,-150.0,0.00022,2]
[366095232,1750060238530,-12537.89035583,0.00022,7]
[366095234,1750060238539,-151.0,0.00022,7]
[366095236,1750060238549,-213.36025772,0.00022,7]
[366095238,1750060238558,-151.0,0.00022,7]
[366095240,1750060238567,-166.0,0.00022,2]
[366095242,1750060238578,-151.0,0.00022,7]
[366095244,1750060238588,-151.0,0.00022009,7]
[366095246,1750060238597,-173.198696,0.00022009,7]
[366095248,1750060238607,-151.0,0.00022009,7]
[366095250,1750060238617,-151.0,0.00022009,7]
[366095252,1750060238627,-229.195013,0.00022009,7]
[366095254,1750060238638,-154.652528,0.00022009,7]
[366095256,1750060238648,-243.73010612,0.0002201,2]
[366095258,1750060238660,-845.4146947,0.00022013,2]
[366095260,1750060238670,-12537.89035583,0.00022013,2]
[366095262,1750060238679,-314.24108133,0.00022038,6]
[366095264,1750060238688,-314.24108133,0.00022176,6]
[366095266,1750060238698,-151.0,0.00022191,7]
[366095268,1750060238707,-151.0,0.00022191,7]
[366095270,1750060238717,-151.0,0.00022191,7]
[366095272,1750060238727,-151.0,0.00022191,7]
[366095274,1750060238737,-154.696438,0.00022191,7]
[366095276,1750060238747,-460.0,0.00022191,4]
[366095277,1750060238757,-282.24507458,0.00022191,4]
[366095278,1750060238767,-151.0,0.00022191,7]
[366095279,1750060238776,-151.0,0.00022191,7]
[366095280,1750060238786,-151.0,0.00022191,7]
[366095281,1750060238795,-460.88612342,0.00022191,4]
[366095282,1750060238805,-151.0,0.00022191,7]
[366095283,1750060238815,-151.0,0.00022191,7]
[366095284,1750060238824,-189.374086,0.00022191,7]
[366095285,1750060238835,-189.374086,0.00022191,7]
[366095286,1750060238844,-214.59545419,0.00022191,4]
[366095287,1750060238855,-460.0,0.00022191,4]
[366095288,1750060238866,-446.45260583,0.00022191,4]
[366095289,1750060238876,-409.51107544,0.00022191,4]
[366095290,1750060238886,-151.0,0.00022191,7]
[366095291,1750060238895,-190.822742,0.00022191,7]
[366095292,1750060238904,-460.0,0.00022191,4]
[366095293,1750060238914,-416.2162323,0.00022191,4]
[366095294,1750060238923,-458.26144841,0.00022191,4]
[366095295,1750060238933,-460.0,0.00022191,4]
[366095296,1750060238944,-470.33344409,0.00022191,4]
[366095297,1750060238954,-460.0,0.00022191,4]
[366095298,1750060238965,-460.0,0.00022191,4]
[366095299,1750060238975,-460.0,0.00022191,4]
[366095300,1750060239086,-460.0,0.00022191,4]
[366095301,1750060239097,-440.0,0.00022191,4]
[366095302,1750060239107,-470.47318794,0.00022191,4]
[366095303,1750060239118,-220.1252963,0.00022191,4]
[366095304,1750060239128,-466.81445133,0.00022191,4]
[366095305,1750060239138,-190.0,0.00022191,4]
[366095306,1750060239153,-151.0,0.00022191,7]
[366095307,1750060239164,-156.509781,0.00022191,7]
[366095308,1750060239174,-460.0,0.00022191,4]
[366095309,1750060239185,-221.27918365,0.00022191,4]
[366095310,1750060239195,-460.0,0.00022191,4]
[366095311,1750060239204,-460.0,0.00022191,4]
[366095312,1750060239214,-556.44085309,0.00022191,4]
[366095313,1750060239223,-521.27,0.00022191,4]
[366095314,1750060239232,-460.0,0.00022191,4]
[366095315,1750060239242,-565.66,0.00022191,4]
[366095316,1750060239252,-460.0,0.00022191,4]
[366095317,1750060239261,-274.21157528,0.00022191,4]
[366095318,1750060239271,-532.55512899,0.00022191,4]
[366095319,1750060239281,-289.8371341,0.00022191,4]
[366095320,1750060239290,-410.0,0.00022191,4]
[366095321,1750060239300,-460.0,0.00022191,4]
[366095322,1750060239310,-274.78,0.00022191,4]
[366095323,1750060239319,-472.76081806,0.00022191,4]
[366095324,1750060239329,-496.75081232,0.00022191,4]
[366095325,1750060239339,-460.0,0.00022191,4]
[366095326,1750060239348,-332.28131824,0.00022191,4]
[366095327,1750060239358,-424.36143042,0.00022191,4]
[366095328,1750060239368,-155.33875793,0.00022191,4]
[366095329,1750060239377,-460.0,0.00022191,4]
[366095330,1750060239387,-439.48035755,0.00022191,4]
[366095331,1750060239396,-440.0,0.00022191,4]
[366095332,1750060239408,-460.0,0.00022191,4]
[366095333,1750060239418,-460.0,0.00022191,4]
[366095334,1750060239428,-460.0,0.00022191,4]
[366095335,1750060239437,-460.0,0.00022191,4]
[366095336,1750060239447,-460.0,0.00022191,4]
[366095337,1750060239456,-460.0,0.00022191,4]
[366095338,1750060239465,-370.0,0.00022191,4]
[366095339,1750060239474,-185.05043185,0.00022191,4]
[366095340,1750060239485,-475.46093032,0.00022191,4]
[366095341,1750060239496,-464.3987596,0.00022191,4]
[366095342,1750060239505,-422.35595763,0.00022191,4]
[366095344,1750060239514,-474.55462676,0.00022191,4]
[366095345,1750060239523,-464.12366532,0.00022191,4]
[366095346,1750060239533,-460.0,0.00022191,4]
[366095347,1750060239542,-318.09064611,0.00022191,4]
[366095348,1750060239552,-296.69369363,0.00022191,4]
[366095349,1750060239562,-460.0,0.00022191,4]
[366095350,1750060239571,-460.0,0.00022191,4]
[366095351,1750060239580,-460.0,0.00022191,2]
[366095352,1750060239590,-472.08439339,0.00022191,4]
[366095353,1750060239599,-593.26874482,0.00022191,4]
[366095354,1750060239608,-460.0,0.00022191,4]
[366095355,1750060239618,-460.0,0.00022191,4]
[366095356,1750060239627,-468.54204228,0.00022191,4]
[366095357,1750060239636,-472.23030786,0.00022191,4]
[366095358,1750060239646,-440.0,0.00022191,4]
[366095359,1750060239656,-460.0,0.00022191,4]
[366095360,1750060239665,-460.0,0.00022191,4]
[366095361,1750060239675,-460.0,0.00022191,4]
[366095362,1750060239684,-460.0,0.00022191,4]
[366095363,1750060239694,-460.0,0.00022191,4]
[366095364,1750060239703,-460.0,0.00022191,4]
[366095365,1750060239714,-332.016889,0.00022191,7]
[366095366,1750060239724,-460.0,0.00022191,4]
[366095367,1750060239734,-151.0,0.00022191,7]
[366095368,1750060239743,-332.016889,0.00022191,7]
[366095369,1750060239753,-460.0,0.00022191,4]
[366095370,1750060239763,-460.0,0.00022191,4]
[366095371,1750060239773,-438.11674702,0.00022191,4]
[366095372,1750060239783,-460.0,0.00022191,4]
[366095373,1750060239792,-460.0,0.00022191,4]
[366095374,1750060239802,-460.0,0.00022191,4]
[366095375,1750060239811,-460.0,0.00022191,4]
[366095376,1750060239821,-460.0,0.00022191,4]
[366095377,1750060239831,-460.0,0.00022191,4]
[366095378,1750060239839,-460.0,0.00022191,4]
[366095379,1750060239849,-422.41056959,0.00022191,4]
[366095380,1750060239859,-465.3,0.00022191,4]
[366095381,1750060239868,-151.0,0.00022191,7]
[366095382,1750060239878,-460.0,0.00022191,4]
[366095383,1750060239887,-489.64037745,0.00022191,4]
[366095384,1750060239897,-500.0,0.00022191,4]
[366095385,1750060239907,-460.0,0.00022191,4]
[366095386,1750060239916,-780.4,0.00022191,4]
[366095387,1750060239925,-460.0,0.00022191,4]
[366095388,1750060239935,-670.23,0.00022191,4]
[366095389,1750060239944,-460.0,0.00022191,4]
[366095390,1750060239954,-460.0,0.00022191,4]
[366095391,1750060239963,-460.0,0.00022191,4]
[366095392,1750060239973,-460.0,0.00022191,4]
[366095393,1750060239982,-151.0,0.00022191,7]
[366095394,1750060239992,-460.0,0.00022191,4]
[366095395,1750060240002,-460.0,0.00022191,4]
[366095396,1750060240011,-460.0,0.00022191,4]
[366095397,1750060240021,-430.0,0.00022191,4]
[366095398,1750060240031,-460.0,0.00022191,4]
[366095399,1750060240041,-460.0,0.00022191,4]
[366095400,1750060240051,-460.0,0.00022191,4]
[366095401,1750060240060,-460.0,0.00022191,4]
[366095402,1750060240070,-460.0,0.00022191,4]
[366095403,1750060240079,-460.0,0.00022191,4]
[366095404,1750060240089,-460.0,0.00022191,4]
[366095405,1750060240098,-460.0,0.00022191,4]
[366095406,1750060240108,-460.0,0.00022191,4]
[366095407,1750060240118,-486.22016368,0.00022191,4]
[366095408,1750060240127,-460.0,0.00022191,4]
[366095409,1750060240137,-460.0,0.00022191,4]
[366095410,1750060240146,-864.9,0.00022191,4]
[366095411,1750060240156,-460.0,0.00022191,4]
[366095412,1750060240166,-460.0,0.00022191,4]
[366095413,1750060240175,-460.0,0.00022191,4]
[366095414,1750060240186,-460.0,0.00022191,4]
[366095415,1750060240195,-460.0,0.00022191,4]
[366095416,1750060240205,-460.0,0.00022191,4]
[366095417,1750060240215,-460.0,0.00022191,4]
[366095418,1750060240225,-422.49401007,0.00022191,4]
[366095419,1750060240235,-460.0,0.00022191,4]
[366095420,1750060240244,-460.0,0.00022191,4]
[366095421,1750060240254,-460.0,0.00022191,4]
[366095422,1750060240263,-446.93564314,0.00022191,4]
[366095423,1750060240273,-460.0,0.00022191,4]
[366095424,1750060240282,-460.0,0.00022191,4]
[366095425,1750060240292,-460.0,0.00022191,4]
[366095426,1750060240301,-460.0,0.00022191,4]
[366095427,1750060240310,-460.0,0.00022191,4]
[366095428,1750060240320,-460.0,0.00022191,4]
[366095429,1750060240329,-471.91536304,0.00022191,4]
[366095430,1750060240339,-460.0,0.00022191,4]
[366095431,1750060240349,-460.0,0.00022191,4]
[366095432,1750060240358,-460.0,0.00022191,4]
[366095433,1750060240368,-427.48376286,0.00022191,4]
[366095434,1750060240378,-460.0,0.00022191,4]
[366095435,1750060240389,-460.0,0.00022191,4]
[366095436,1750060240398,-154.755713,0.00022191,7]
[366095437,1750060240410,-460.0,0.00022191,4]
[366095438,1750060240420,-460.0,0.00022191,4]
[366095439,1750060240429,-460.0,0.00022191,4]
[366095440,1750060240439,-460.0,0.00022191,4]
[366095441,1750060240448,-460.0,0.00022191,4]
[366095442,1750060240458,-460.0,0.00022191,4]
[366095443,1750060240467,-460.0,0.00022191,4]
[366095445,1750060240477,-460.0,0.00022191,4]
[366095447,1750060240487,-460.0,0.00022191,4]
[366095449,1750060240497,-460.0,0.00022191,4]
[366095451,1750060240506,-151.0,0.00022191,7]
[366095453,1750060240515,-460.0,0.00022191,4]
[366095455,1750060240525,-460.0,0.00022191,4]
[366095457,1750060240535,-489.68253041,0.00022191,4]
[366095459,1750060240544,-460.0,0.00022191,4]
[366095460,1750060240554,-151.0,0.00022191,7]
[366095462,1750060240563,-460.0,0.00022191,4]
[366095465,1750060240574,-397.05482775,0.00022191,4]
[366095466,1750060240584,-255.88008586,0.00022191,4]
[366095468,1750060240593,-460.0,0.00022191,4]
[366095470,1750060240603,-460.0,0.00022191,4]
[366095472,1750060240612,-460.0,0.00022191,4]
[366095474,1750060240622,-460.0,0.00022191,4]
[366095476,1750060240631,-460.0,0.00022191,4]
[366095478,1750060240640,-460.0,0.00022191,4]
[366095480,1750060240650,-460.0,0.00022191,4]
[366095482,1750060240660,-240.0,0.00022191,4]
[366095484,1750060240670,-609.20656761,0.00022191,4]
[366095486,1750060240679,-460.0,0.00022191,4]
[366095488,1750060240689,-547.71,0.00022191,4]
[366095490,1750060240698,-460.0,0.00022191,4]
[366095492,1750060240707,-410.0,0.00022191,4]
[366095494,1750060240717,-457.88122555,0.00022191,4]
[366095496,1750060240726,-460.0,0.00022191,4]
[366095498,1750060240735,-460.0,0.00022191,4]
[366095500,1750060240744,-460.0,0.00022191,4]
[366095502,1750060240754,-460.0,0.00022191,4]
[366095504,1750060240763,-460.0,0.00022191,4]
[366095506,1750060240773,-460.0,0.00022191,4]
[366095508,1750060240782,-460.0,0.00022191,4]
[366095510,1750060240791,-460.0,0.00022191,4]
[366095512,1750060240801,-460.0,0.00022191,4]
[366095514,1750060240810,-460.0,0.00022191,4]
[366095516,1750060240820,-460.0,0.00022191,4]
[366095518,1750060240830,-460.0,0.00022191,4]
[366095519,1750060240839,-460.0,0.00022191,4]
[366095520,1750060240849,-460.0,0.00022191,4]
[366095521,1750060240858,-518.76061953,0.00022191,4]
[366095522,1750060240867,-460.0,0.00022191,4]
[366095523,1750060240876,-460.0,0.00022191,4]
[366095524,1750060240886,-460.0,0.00022191,4]
[366095525,1750060240895,-460.0,0.00022191,4]
[366095526,1750060240905,-151.0,0.00022191,7]
[366095527,1750060240915,-460.0,0.00022191,4]
[366095528,1750060240924,-460.0,0.00022191,4]
[366095529,1750060240933,-460.43965173,0.00022191,4]
[366095530,1750060240942,-197.06690157,0.000222,69]
[366095531,1750060240952,-243.73010612,0.0002222,2]
[366095532,1750060240962,-275.42208913,0.00022283,7]
[366095533,1750060240971,-255.0,0.0002231,2]
[366095534,1750060240981,-314.24108133,0.00022314,7]
[366095536,1750060240991,-255.0,0.00022315,2]
[366095538,1750060241000,-255.0,0.0002232,2]
[366095540,1750060241010,-400.81580436,0.00022325,2]
[366095542,1750060241020,-503.92208925,0.00022383,2]
[366095544,1750060241030,-500.0,0.00022385,2]
[366095555,1750060241039,-504.14328316,0.00022385,2]
[366095557,1750060241143,-1000.0,0.00022385,2]
[366095559,1750060241155,-500.0,0.00022418,2]
[366095561,1750060241164,-243.73010612,0.00022429,2]
[366095563,1750060241174,-168.0,0.00022441,2]
[366095565,1750060241184,-314.24108133,0.00022452,7]
[366095567,1750060241193,-151.0,0.00022465,7]
[366095569,1750060241203,-151.0,0.00022465,7]
[366095571,1750060241212,-151.0,0.00022465,7]
[366095573,1750060241222,-151.0,0.00022465,7]
[366095575,1750060241231,-235.31253788,0.00022465,4]
[366095577,1750060241240,-151.0,0.00022465,7]
[366095579,1750060241251,-151.0,0.00022465,7]
[366095581,1750060241261,-151.0,0.00022465,7]
[366095583,1750060241271,-189.374086,0.00022465,7]
[366095585,1750060241280,-189.374086,0.00022465,7]
[366095587,1750060241290,-419.59784364,0.00022465,4]
[366095589,1750060241300,-151.0,0.00022465,7]
[366095591,1750060241309,-223.40042319,0.00022465,4]
[366095593,1750060241319,-469.86600201,0.00022465,4]
[366095595,1750060241329,-370.0,0.00022465,4]
[366095597,1750060241339,-367.05826072,0.00022465,4]
[366095599,1750060241349,-460.0,0.00022465,4]
[366095601,1750060241359,-460.0,0.00022465,4]
[366095603,1750060241369,-460.0,0.00022465,4]
[366095605,1750060241379,-460.0,0.00022465,4]
[366095607,1750060241388,-460.0,0.00022465,4]
[366095609,1750060241398,-460.0,0.00022465,4]
[366095611,1750060241410,-324.37400178,0.00022465,4]
[366095613,1750060241419,-440.0,0.00022465,4]
[366095615,1750060241429,-440.0,0.00022465,4]
[366095617,1750060241439,-460.0,0.00022465,4]
[366095619,1750060241448,-184.7097133,0.00022465,4]
[366095621,1750060241458,-465.63253903,0.00022465,4]
[366095623,1750060241468,-301.495167,0.00022465,4]
[366095625,1750060241477,-460.0,0.00022465,4]
[366095627,1750060241488,-460.0,0.00022465,4]
[366095629,1750060241498,-200.755456,0.00022465,4]
[366095630,1750060241507,-460.0,0.00022465,2]
[366095632,1750060241517,-460.0,0.00022465,4]
[366095634,1750060241526,-460.0,0.00022465,4]
[366095635,1750060241535,-404.06573376,0.00022465,4]
[366095637,1750060241544,-460.0,0.00022465,4]
[366095639,1750060241554,-561.81176251,0.00022465,4]
[366095641,1750060241563,-528.09607589,0.00022465,4]
[366095643,1750060241573,-205.29681802,0.00022465,4]
[366095645,1750060241583,-332.016889,0.00022465,7]
[366095647,1750060241593,-460.0,0.00022465,4]
[366095649,1750060241606,-460.0,0.00022465,4]
[366095651,1750060241616,-332.016889,0.00022465,7]
[366095653,1750060241626,-460.0,0.00022465,4]
[366095655,1750060241637,-460.0,0.00022465,4]
[366095657,1750060241647,-460.0,0.00022465,4]
[366095659,1750060241656,-460.0,0.00022465,4]
[366095661,1750060241665,-317.17779634,0.00022465,4]
[366095663,1750060241675,-460.0,0.00022465,4]
[366095665,1750060241684,-460.0,0.00022465,4]
[366095667,1750060241694,-460.0,0.00022465,4]
[366095669,1750060241703,-460.0,0.00022465,4]
[366095671,1750060241713,-465.3,0.00022465,4]
[366095673,1750060241722,-151.0,0.00022465,7]
[366095675,1750060241731,-460.0,0.00022465,4]
[366095677,1750060241741,-529.53046468,0.00022465,4]
[366095679,1750060241750,-460.0,0.00022465,4]
[366095681,1750060241759,-780.4,0.00022465,4]
[366095683,1750060241769,-460.0,0.00022465,4]
[366095685,1750060241778,-670.23,0.00022465,4]
[366095687,1750060241788,-460.0,0.00022465,4]
[366095689,1750060241797,-460.0,0.00022465,4]
[366095691,1750060241807,-460.0,0.00022465,4]
[366095693,1750060241817,-460.0,0.00022465,4]
[366095695,1750060241827,-151.0,0.00022465,7]
[366095697,1750060241837,-460.0,0.00022465,4]
[366095699,1750060241847,-460.0,0.00022465,4]
[366095701,1750060241857,-460.0,0.00022465,4]
[366095703,1750060241866,-460.0,0.00022465,4]
[366095705,1750060241875,-460.0,0.00022465,4]
[366095707,1750060241884,-460.0,0.00022465,4]
[366095709,1750060241894,-430.80951351,0.00022465,4]
[366095711,1750060241905,-460.0,0.00022465,4]
[366095713,1750060241915,-460.0,0.00022465,4]
[366095715,1750060241924,-460.0,0.00022465,4]
[366095716,1750060241933,-263.01650143,0.00022465,4]
[366095717,1750060241941,-460.0,0.00022465,4]
[366095719,1750060241951,-460.0,0.00022465,4]
[366095721,1750060241962,-864.9,0.00022465,4]
[366095723,1750060241971,-460.0,0.00022465,4]
[366095725,1750060241981,-460.0,0.00022465,4]
[366095727,1750060241990,-460.0,0.00022465,4]
[366095729,1750060242000,-410.0,0.00022465,4]
[366095731,1750060242010,-408.46524953,0.00022465,4]
[366095733,1750060242019,-460.0,0.00022465,4]
[366095735,1750060242030,-473.22419567,0.00022465,4]
[366095737,1750060242044,-460.0,0.00022465,4]
[366095740,1750060242061,-460.0,0.00022465,4]
[366095743,1750060242077,-460.0,0.00022465,4]
[366095745,1750060242091,-361.86777023,0.00022465,4]
[366095747,1750060242103,-430.0,0.00022465,4]
[366095750,1750060242118,-460.0,0.00022465,4]
[366095752,1750060242132,-460.0,0.00022465,4]
[366095755,1750060242148,-460.0,0.00022465,4]
[366095757,1750060242163,-460.0,0.00022465,4]